bitfinex-derivatives/quotes_BTCF0:USTF0_20250505
["timestamp","ask_amount","ask_price","bid_price","bid_amount"]
[1746410507457,0.3608,93857.0,93854.0,0.26941335]
[1746410507766,0.3682,93856.0,93855.0,0.213084]
[1746410508268,0.00788328,93857.0,93856.0,0.2130817]
[1746410508469,0.0756,93869.0,93868.0,0.2130545]
[1746410508667,0.2256,93869.0,93868.0,0.20772382]
[1746410509061,0.00798163,93869.0,93868.0,0.56852382]
[1746410509261,0.36,93884.0,93883.0,0.2130204]
[1746410509461,0.41,93884.0,93883.0,0.2130204]
[1746410509662,0.05810477,93884.0,93883.0,0.2130204]
[1746410509863,0.00810477,93884.0,93883.0,0.2130204]
[1746410510169,0.1756,93889.0,93888.0,0.2130091]
[1746410510368,0.1,93889.0,93888.0,0.2130091]
[1746410510563,0.1,93889.0,93888.0,0.5738091]
[1746410510764,0.0015,93890.0,93889.0,0.2130068]
[1746410511367,9e-08,93890.0,93889.0,0.5695148]
[1746410511565,0.1,93902.0,93901.0,0.2129796]
[1746410511765,0.05251793,93907.0,93905.0,0.2129705]
[1746410512371,0.3608,93933.0,93923.0,0.2129297]
[1746410512575,0.39037569,93924.0,93923.0,0.2129297]
[1746410513274,0.4432188,93924.0,93923.0,0.2129297]
[1746410513468,0.4432188,93924.0,93900.0,0.0532452]
[1746410513469,0.55772522,93924.0,93900.0,0.0532452]
[1746410513672,0.13367106,93920.0,93919.0,0.2129388]
[1746410513879,0.1875,93923.0,93922.0,0.212932]
[1746410514176,0.55772522,93924.0,93923.0,0.20759902]
[1746410514177,0.2678556,93924.0,93923.0,0.20759902]
[1746410514477,0.36735067,93924.0,93915.0,0.0532368]
[1746410514670,0.1,93922.0,93919.0,0.0532344]
[1746410514974,0.002,93920.0,93919.0,0.2661732]
[1746410515365,0.101,93920.0,93919.0,0.2661732]
[1746410515761,0.151,93920.0,93919.0,0.2661732]
[1746410515966,0.151,93920.0,93875.0,0.36186524]
[1746410515967,0.36395016,93920.0,93875.0,0.36186524]
[1746410516172,0.3608,93902.0,93901.0,0.2129796]
[1746410516475,0.5108,93902.0,93901.0,0.2129796]
[1746410517872,0.5118,93902.0,93901.0,0.2129796]
[1746410518077,0.5128,93902.0,93901.0,0.2129796]
[1746410523579,0.5128,93902.0,93901.0,0.3967796]
[1746410524882,0.102,93902.0,93901.0,0.3967796]
[1746410525682,0.4364,93918.0,93917.0,0.2129433]
[1746410525981,0.6108,93918.0,93917.0,0.2129433]
[1746410526590,0.6108,93918.0,93917.0,0.5964433]
[1746410526882,0.1,93912.0,93893.0,0.3608]
[1746410527079,0.1,93912.0,93903.0,0.212975]
[1746410527080,0.4608,93904.0,93903.0,0.212975]
[1746410527474,0.6986,93904.0,93903.0,0.212975]
[1746410528287,0.6996,93904.0,93903.0,0.212975]
[1746410528781,0.6996,93904.0,93887.0,0.0532524]
[1746410529082,0.6996,93904.0,93896.0,0.0532477]
[1746410529083,0.15,93898.0,93896.0,0.0532477]
[1746410529283,0.15,93898.0,93897.0,0.3980886]
[1746410529480,0.15,93898.0,93897.0,0.5842886]
[1746410529786,0.148,93898.0,93897.0,0.5842886]
[1746410529970,0.1,93898.0,93897.0,0.5842886]
[1746410530477,0.15,93898.0,93897.0,0.5842886]
[1746410530678,0.152,93898.0,93897.0,0.5862886]
[1746410530978,0.052,93898.0,93897.0,0.5862886]
[1746410531184,0.2256,93918.0,93917.0,0.2129433]
[1746410531379,0.1,93918.0,93917.0,0.2129433]
[1746410531773,0.1,93921.0,93920.0,0.2129365]
[1746410531977,0.0015,93925.0,93921.0,0.0532332]
[1746410532177,0.05,93923.0,93922.0,0.4348326]
[1746410532382,0.15,93923.0,93922.0,0.4348326]
[1746410532580,0.3608,93955.0,93928.0,0.0532294]
[1746410532783,0.24598,93939.0,93938.0,0.2128957]
[1746410532984,0.07628,93939.0,93938.0,0.2128957]
[1746410533491,0.12987335,93939.0,93938.0,0.2128957]
[1746410534386,0.13287335,93939.0,93938.0,0.2128957]
[1746410534587,0.05659335,93939.0,93938.0,0.5736957]
[1746410535280,0.003,93939.0,93938.0,0.68014769]
[1746410535476,0.006,93939.0,93938.0,0.68014769]
[1746410535677,0.05430221,93940.0,93939.0,0.2128934]
[1746410535881,0.05430217,93940.0,93939.0,0.51114539]
[1746410536284,0.10697569,93948.0,93947.0,0.2128753]
[1746410536482,0.10697569,93948.0,93947.0,0.5736753]
[1746410537484,0.11197569,93948.0,93947.0,0.5736753]
[1746410537975,0.12000653,93948.0,93947.0,0.5736753]
[1746410538175,0.12000653,93948.0,93947.0,0.5746753]
[1746410538482,0.12400653,93948.0,93947.0,0.5746753]
[1746410538790,0.12400653,93948.0,93947.0,0.6811193]
[1746410538987,0.12400653,93948.0,93947.0,0.5746753]
[1746410539186,0.22400653,93948.0,93947.0,0.5746753]
[1746410539486,0.11703084,93948.0,93947.0,0.5746753]
[1746410541086,0.27347326,93948.0,93947.0,0.001]
[1746410541286,0.27347326,93948.0,93932.0,0.1916]
[1746410541494,0.2128806,93945.0,93944.0,0.2128813]
[1746410541720,0.0532194,93946.0,93933.0,0.0532266]
[1746410541989,0.2629026,93935.0,93909.0,0.0532399]
[1746410542283,0.13367106,93933.0,93932.0,0.2129093]
[1746410542489,0.1906,93934.0,93932.0,0.001]
[1746410542686,0.10646339,93933.0,93917.0,0.1834]
[1746410542885,0.05,93923.0,93906.0,0.66798154]
[1746410543190,0.1,93908.0,93907.0,0.21456332]
[1746410543392,0.1,93908.0,93907.0,1.89796332]
[1746410543582,0.3608,93924.0,93907.0,1.89796332]
[1746410543583,0.1868,93916.0,93915.0,0.2129478]
[1746410543786,0.098,93916.0,93914.0,0.5442]
[1746410544082,0.1,93916.0,93915.0,0.2129478]
[1746410544594,0.1,93916.0,93915.0,0.3983478]
[1746410545485,0.001,93923.0,93919.0,0.0532343]
[1746410545787,0.001,93923.0,93922.0,0.573732]
[1746410545993,0.07628,93935.0,93934.0,0.2129048]
[1746410546193,0.183,93939.0,93938.0,0.2128957]
[1746410547279,0.233,93939.0,93938.0,0.2128957]
[1746410547687,0.237,93939.0,93938.0,0.2128957]
[1746410548898,0.24,93939.0,93938.0,0.2128957]
[1746410550583,0.34,93939.0,93938.0,0.2128957]
[1746410553397,0.34,93939.0,93930.0,0.3608]
[1746410553592,0.05,93934.0,93931.0,0.0532279]
[1746410553792,0.3854,93933.0,93930.0,0.3608]
[1746410553993,0.3608,93931.0,93927.0,0.21292]
[1746410554194,0.3854,93930.0,93929.0,0.2129161]
[1746410554400,0.3854,93930.0,93929.0,0.20758887]
[1746410554604,0.49185262,93930.0,93929.0,0.20758887]
[1746410554801,0.49185262,93930.0,93929.0,0.20226164]
[1746410555099,0.49185262,93930.0,93929.0,0.19693441]
[1746410555501,0.49185262,93930.0,93923.0,0.0532324]
[1746410555705,0.05,93924.0,93923.0,0.0532324]
[1746410555997,0.15,93924.0,93923.0,0.2661621]
[1746410556201,0.15,93924.0,93906.0,0.0532418]
[1746410556504,0.13367106,93922.0,93921.0,0.2129342]
[1746410556706,0.3714,93923.0,93922.0,0.212932]
[1746410556899,0.1907,93923.0,93922.0,0.212932]
[1746410557605,0.65797586,93923.0,93901.0,0.3608]
[1746410557898,0.32947106,93922.0,93909.0,0.0532402]
[1746410558103,0.2129524,93913.0,93912.0,0.35547224]
[1746410558298,0.3629524,93913.0,93912.0,0.35547224]
[1746410558601,0.212955,93912.0,93905.0,0.214035]
[1746410558803,0.395255,93912.0,93905.0,0.214035]
[1746410559205,0.10648209,93911.0,93906.0,0.2129676]
[1746410559390,0.10648209,93911.0,93906.0,0.20763984]
[1746410559597,0.1823,93910.0,93906.0,0.20763984]
[1746410560304,0.10648663,93909.0,93905.0,0.0543071]
[1746410560511,0.10648663,93909.0,93907.0,0.2129647]
[1746410560695,0.10648663,93909.0,93908.0,0.20763594]
[1746410560892,0.001,93912.0,93911.0,0.2129569]
[1746410561197,0.002,93912.0,93911.0,0.2129569]
[1746410561901,0.13367106,93921.0,93920.0,0.2129365]
[1746410562101,0.15,93921.0,93920.0,0.20760874]
[1746410562499,0.25648323,93921.0,93920.0,0.20760874]
[1746410563411,0.25648323,93921.0,93918.0,0.2129408]
[1746410563607,0.1,93920.0,93890.0,0.07628]
[1746410563809,0.3608,93909.0,93896.0,0.0532475]
[1746410564001,0.4108,93909.0,93893.0,0.0532493]
[1746410564210,0.2129675,93907.0,93901.0,0.2129791]
[1746410564406,0.10647302,93908.0,93894.0,0.0532488]
[1746410564703,0.2129764,93903.0,93883.0,0.52274941]
[1746410565012,0.05,93893.0,93892.0,0.213]
[1746410565207,0.10286129,93893.0,93892.0,0.213]
[1746410565604,0.11082805,93893.0,93892.0,0.213]
[1746410566408,0.11082805,93893.0,93884.0,0.367]
[1746410566409,0.11082805,93893.0,93885.0,0.0532534]
[1746410566601,0.05,93887.0,93886.0,0.2130136]
[1746410566801,0.15,93887.0,93886.0,0.2130136]
[1746410567309,0.25650477,93887.0,93886.0,0.2130136]
[1746410567810,0.1,93887.0,93886.0,0.2130136]
[1746410568405,0.101,93887.0,93883.0,0.3608]
[1746410568600,0.25751158,93887.0,93883.0,0.3608]
[1746410568805,0.25751158,93887.0,93885.0,0.2130156]
[1746410569009,0.2130363,93876.0,93872.0,0.00159791]
[1746410569205,0.2130363,93876.0,93874.0,0.11026471]
[1746410569206,0.3630386,93875.0,93874.0,0.11026471]
[1746410569399,0.4695626,93875.0,93874.0,0.10493469]
[1746410569603,0.67607418,93875.0,93874.0,0.10493469]
[1746410569807,0.67607418,93875.0,93874.0,0.09960467]
[1746410570012,0.67607418,93875.0,93874.0,0.04630444]
[1746410570213,0.95239203,93875.0,93874.0,1e-08]
[1746410570412,0.70239203,93875.0,93874.0,1e-08]
[1746410570611,0.2130522,93869.0,93868.0,0.21277869]
[1746410570809,0.5399722,93869.0,93868.0,0.21277869]
[1746410571009,0.213093,93851.0,93850.0,0.26816543]
[1746410571204,0.58772,93851.0,93850.0,0.26816543]
[1746410571412,0.69427201,93851.0,93850.0,0.26283541]
[1746410571725,0.58772,93851.0,93850.0,0.25750539]
[1746410571916,0.90736544,93851.0,93850.0,0.25750539]
[1746410572215,0.2131057,93846.0,93838.0,0.1797]
[1746410572403,0.3361,93845.0,93839.0,0.0532796]
[1746410572599,0.3361,93845.0,93843.0,0.2131102]
[1746410572805,0.15,93845.0,93844.0,0.5739089]
[1746410573000,0.15,93845.0,93844.0,0.2131089]
[1746410573716,0.1,93845.0,93844.0,0.7522089]
[1746410574911,0.102,93845.0,93844.0,0.7522089]
[1746410575115,0.01017411,93845.0,93844.0,0.7522089]
[1746410575415,0.01217411,93845.0,93844.0,0.7522089]
[1746410575614,1e-08,93845.0,93844.0,0.8587689]
[1746410575810,1e-08,93845.0,93844.0,2.6087689]
[1746410576009,1e-08,93845.0,93844.0,2.2522089]
[1746410576813,1e-08,93845.0,93844.0,2.3587689]
[1746410577015,0.13367106,93860.0,93844.0,2.0391]
[1746410577209,0.18367106,93860.0,93859.0,0.2130749]
[1746410577410,0.05,93860.0,93858.0,0.2130771]
[1746410577611,0.0532699,93857.0,93844.0,0.5391]
[1746410577808,0.05,93847.0,93844.0,0.1803]
[1746410578010,0.2802,93846.0,93845.0,0.2131067]
[1746410578215,0.2802,93846.0,93839.0,0.05328]
[1746410578414,0.2111226,93838.0,93804.0,0.0532998]
[1746410578604,0.3091226,93838.0,93826.0,0.053287]
[1746410578810,0.1,93838.0,93831.0,0.2131384]
[1746410579005,0.2802,93838.0,93831.0,0.2131384]
[1746410579207,0.38676152,93838.0,93832.0,0.2131362]
[1746410579415,0.20656152,93838.0,93837.0,0.21472331]
[1746410579615,0.002,93846.0,93845.0,0.2131067]
[1746410579810,0.104,93846.0,93845.0,0.2171067]
[1746410580116,0.104,93846.0,93845.0,0.3371067]
[1746410580512,0.104,93846.0,93845.0,0.5250067]
[1746410580714,0.104,93846.0,93845.0,0.124]
[1746410580715,0.20855811,93846.0,93845.0,0.124]
[1746410580915,0.42166251,93846.0,93845.0,0.124]
[1746410581317,0.21055811,93846.0,93845.0,0.3371067]
[1746410581508,0.20855811,93846.0,93845.0,0.3331067]
[1746410581707,0.102,93846.0,93845.0,0.3331067]
[1746410581916,0.002,93846.0,93845.0,0.3331067]
[1746410582323,0.102,93846.0,93845.0,0.3331067]
[1746410582519,0.104,93846.0,93845.0,0.3331067]
[1746410583115,0.0532606,93874.0,93845.0,0.3331067]
[1746410583116,0.00790156,93860.0,93859.0,0.2130749]
[1746410583416,0.54464,93867.0,93866.0,0.213059]
[1746410583618,0.1,93846.0,93838.0,0.36046174]
[1746410583824,0.5108,93849.0,93848.0,0.2130999]
[1746410584215,0.45245757,93867.0,93866.0,0.213059]
[1746410584417,0.60245757,93867.0,93866.0,0.213059]
[1746410584826,0.70899185,93867.0,93866.0,0.213059]
[1746410585021,0.70899185,93867.0,93866.0,0.397659]
[1746410585319,0.60245757,93867.0,93866.0,0.517659]
[1746410585717,0.51861757,93867.0,93866.0,0.517659]
[1746410585926,0.51861757,93867.0,93866.0,0.878459]
[1746410585927,0.00781757,93867.0,93866.0,0.878459]
[1746410586226,0.102,93867.0,93866.0,0.878459]
[1746410587318,0.73386529,93867.0,93866.0,0.12]
[1746410587519,0.84239957,93867.0,93866.0,0.122]
[1746410590330,0.213084,93855.0,93845.0,0.1893]
[1746410590630,0.15,93849.0,93848.0,0.2130999]
[1746410591932,0.002,93849.0,93848.0,0.2130999]
[1746410592127,0.102,93849.0,93848.0,0.2130999]
[1746410592424,0.102,93849.0,93848.0,0.4014999]
[1746410592630,0.002,93849.0,93848.0,0.4014999]
[1746410593224,0.004,93849.0,93848.0,0.4014999]
[1746410595824,0.3726,93866.0,93848.0,0.294956]
[1746410596028,0.36880859,93867.0,93866.0,0.213059]
[1746410596224,0.10800859,93867.0,93866.0,0.573859]
[1746410596827,0.10800859,93867.0,93866.0,0.949659]
[1746410597735,0.11000859,93867.0,93866.0,0.949659]
[1746410597931,0.11200859,93867.0,93866.0,0.949659]
[1746410598925,0.08384,93883.0,93875.0,0.2130386]
[1746410599333,0.173,93882.0,93875.0,0.2130386]
[1746410599534,0.1869,93880.0,93875.0,0.2130386]
[1746410599729,0.1869,93880.0,93875.0,0.5745386]
[1746410600130,0.003,93876.0,93875.0,0.5785386]
[1746410600528,0.005,93876.0,93875.0,0.5805386]
[1746410600828,0.01297992,93876.0,93875.0,0.5805386]
[1746410601030,0.005,93876.0,93875.0,0.6870626]
[1746410602027,0.005,93876.0,93875.0,0.3675]
[1746410602338,0.01311186,93876.0,93875.0,0.006]
[1746410602538,0.005,93876.0,93875.0,0.2190386]
[1746410604333,0.005,93876.0,93875.0,0.3896386]
[1746410604725,0.105,93876.0,93875.0,0.006]
[1746410605132,0.105,93876.0,93875.0,0.2190386]
[1746410605442,0.0130279,93876.0,93875.0,0.2190386]
[1746410605630,0.0130279,93876.0,93875.0,0.5516386]
[1746410607731,0.1130279,93876.0,93875.0,0.5516386]
[1746410607932,0.01283389,93876.0,93875.0,0.5516386]
[1746410608132,0.11283389,93876.0,93875.0,0.5516386]
[1746410608332,0.07423389,93883.0,93882.0,0.2130227]
[1746410608638,0.07423389,93883.0,93875.0,0.3386]
[1746410608639,0.10652406,93882.0,93877.0,0.2130333]
[1746410608835,0.1,93879.0,93878.0,0.2130318]
[1746410609245,0.2598,93879.0,93877.0,0.213032]
[1746410609436,0.1598,93879.0,93877.0,0.213032]
[1746410609640,0.2598,93879.0,93877.0,0.2130326]
[1746410609942,0.2598,93879.0,93878.0,0.2130318]
[1746410610538,0.26382913,93879.0,93878.0,0.2130318]
[1746410610742,0.26582913,93879.0,93878.0,0.2170318]
[1746410610942,0.16582913,93879.0,93878.0,0.2170318]
[1746410611145,0.16682913,93879.0,93878.0,0.2210318]
[1746410611441,0.16682913,93879.0,93878.0,0.2103718]
[1746410611642,0.33102913,93879.0,93878.0,0.2103718]
[1746410611843,0.33102913,93879.0,93878.0,0.008]
[1746410612238,0.43102913,93879.0,93878.0,0.008]
[1746410612840,0.43102913,93879.0,93878.0,0.2210318]
[1746410614146,0.33102913,93879.0,93878.0,0.2210318]
[1746410614738,0.16682913,93879.0,93878.0,0.2210318]
[1746410614939,0.01102913,93879.0,93878.0,0.3952318]
[1746410617342,0.45135174,93890.0,93878.0,0.3952318]
[1746410617343,0.0015,93890.0,93889.0,0.2130068]
[1746410617646,0.0015,93890.0,93889.0,0.5738068]
[1746410618047,0.00933278,93890.0,93889.0,0.9053068]
[1746410618247,0.0015,93890.0,93889.0,0.9053068]
[1746410618645,0.0025,93890.0,93889.0,0.9053068]
[1746410618942,0.0035,93890.0,93889.0,0.9093068]
[1746410619147,0.1035,93890.0,93889.0,0.9093068]
[1746410619535,0.0035,93890.0,93889.0,0.9093068]
[1746410619734,0.1035,93890.0,93889.0,0.9093068]
[1746410619947,0.0035,93890.0,93889.0,0.9093068]
[1746410620146,0.1035,93890.0,93889.0,0.9093068]
[1746410620947,0.0035,93890.0,93889.0,0.9093068]
[1746410621148,0.1035,93890.0,93889.0,0.7410068]
[1746410622444,0.0035,93890.0,93889.0,0.7410068]
[1746410622636,0.01150549,93890.0,93889.0,0.7410068]
[1746410622837,0.0035,93890.0,93889.0,0.7410068]
[1746410623242,0.11155496,93890.0,93889.0,0.7410068]
[1746410623450,0.44985174,93910.0,93889.0,0.793108]
[1746410623451,0.1638,93905.0,93889.0,0.793108]
[1746410623749,0.2638,93905.0,93904.0,0.2129728]
[1746410623938,0.31749448,93905.0,93904.0,0.2129728]
[1746410624144,0.00787669,93905.0,93904.0,0.5737728]
[1746410624350,0.1664,93909.0,93905.0,0.2129705]
[1746410624549,0.21974273,93909.0,93905.0,0.2129705]
[1746410624752,0.1713,93908.0,93905.0,0.5510705]
[1746410625247,0.1713,93908.0,93905.0,0.7125705]
[1746410625749,0.21974273,93909.0,93905.0,0.7125705]
[1746410625750,0.09054313,93906.0,93905.0,0.7165705]
[1746410625955,0.09154313,93906.0,93905.0,0.7175705]
[1746410626251,0.1594657,93916.0,93915.0,0.2129478]
[1746410626252,0.10697569,93916.0,93915.0,0.2129478]
[1746410626442,0.10697569,93916.0,93915.0,0.5737478]
[1746410626643,0.10697569,93916.0,93915.0,0.68022779]
[1746410626846,0.00955176,93925.0,93924.0,0.2129274]
[1746410627047,0.0015,93925.0,93924.0,0.5737274]
[1746410627646,0.0015,93925.0,93924.0,0.9129274]
[1746410629154,0.0025,93925.0,93924.0,0.9149274]
[1746410629356,0.0035,93925.0,93924.0,0.9179274]
[1746410629751,0.1035,93925.0,93924.0,0.9179274]
[1746410629947,0.0035,93925.0,93924.0,0.9179274]
[1746410630149,0.01143648,93925.0,93924.0,0.9179274]
[1746410630451,0.0035,93925.0,93924.0,0.9179274]
[1746410631966,0.1035,93925.0,93924.0,0.9179274]
[1746410632163,0.3164252,93925.0,93924.0,0.3658]
[1746410632465,0.46794045,93925.0,93917.0,0.0532356]
[1746410632659,0.15,93915.0,93909.0,0.3608]
[1746410632860,0.3295,93914.0,93913.0,0.2129524]
[1746410634060,0.3285,93914.0,93913.0,0.2129524]
[1746410634661,0.3275,93914.0,93913.0,0.2139524]
[1746410635668,0.3285,93914.0,93913.0,0.2169524]
[1746410636665,0.4285,93914.0,93913.0,0.3802524]
[1746410637863,0.1658,93914.0,93913.0,0.3802524]
[1746410638063,0.1605,93924.0,93923.0,0.2129297]
[1746410638266,0.00947244,93925.0,93924.0,0.2129274]
[1746410638568,0.00947244,93925.0,93924.0,0.3708274]
[1746410638761,0.00947244,93925.0,93924.0,0.5374274]
[1746410640761,0.01047244,93925.0,93924.0,0.5394274]
[1746410641360,0.01147244,93925.0,93924.0,0.6468954]
[1746410642060,0.1538,93935.0,93934.0,0.2129048]
[1746410642262,0.16181256,93935.0,93934.0,0.5737048]
[1746410643067,0.16181256,93935.0,93934.0,0.9081048]
[1746410643265,0.1658,93938.0,93934.0,0.9081048]
[1746410643266,0.05,93949.0,93948.0,0.212873]
[1746410643466,0.00808529,93949.0,93944.0,0.0532205]
[1746410643671,0.3129,93952.0,93947.0,0.0532188]
[1746410643861,0.1538,93948.0,93947.0,0.2660941]
[1746410644965,0.3129,93948.0,93947.0,0.2660941]
[1746410645475,0.01114823,93949.0,93948.0,0.212873]
[1746410645658,0.003,93949.0,93948.0,0.212873]
[1746410646669,0.1549,93951.0,93950.0,0.2128685]
[1746410647068,0.1595,93958.0,93957.0,0.2128526]
[1746410647269,0.001,93966.0,93959.0,0.2128481]
[1746410647470,0.00946368,93960.0,93959.0,0.2128481]
[1746410647669,0.0015,93960.0,93959.0,0.2128481]
[1746410649877,0.0145,93960.0,93959.0,0.2128481]
[1746410651375,0.48316223,93960.0,93959.0,0.2128481]
[1746410651569,0.73316223,93960.0,93959.0,0.2128481]
[1746410651875,0.053213,93958.0,93933.0,0.0532265]
[1746410652179,0.3608,93939.0,93938.0,0.2128957]
[1746410652478,0.4608,93939.0,93938.0,0.2128957]
[1746410652673,0.6912,93939.0,93938.0,0.2128957]
[1746410652870,0.3304,93939.0,93938.0,0.2128957]
[1746410653071,0.1617,93939.0,93938.0,0.2128957]
[1746410653470,0.1617,93939.0,93938.0,0.5375957]
[1746410653875,0.1647,93939.0,93938.0,0.5385957]
[1746410654474,0.1667,93939.0,93938.0,0.5395957]
[1746410654977,0.005,93939.0,93938.0,0.7000957]
[1746410655278,0.1687,93950.0,93948.0,0.212873]
[1746410655279,0.154,93949.0,93948.0,0.212873]
[1746410655575,0.6148,93949.0,93948.0,0.212873]
[1746410655776,0.6148,93949.0,93946.0,0.053219]
[1746410655777,0.77125262,93949.0,93938.0,0.002]
[1746410655982,0.5648,93949.0,93939.0,0.08905174]
[1746410656277,0.154,93949.0,93948.0,0.212873]
[1746410656680,0.157,93949.0,93948.0,0.213873]
[1746410656875,0.162,93949.0,93948.0,0.213873]
[1746410659382,0.6228,93949.0,93948.0,0.001]
[1746410659683,0.6228,93949.0,93948.0,0.213873]
[1746410662674,0.6228,93949.0,93948.0,0.001]
[1746410662874,0.77924129,93949.0,93948.0,0.001]
[1746410663074,0.77924129,93949.0,93948.0,0.213873]
[1746410671092,0.6228,93949.0,93948.0,0.213873]
[1746410671490,0.5228,93949.0,93948.0,0.213873]
[1746410672196,0.5228,93949.0,93948.0,0.534373]
[1746410674396,0.3688,93949.0,93948.0,0.534373]
[1746410678292,0.1471,93959.0,93958.0,0.2128504]
[1746410678487,0.2471,93959.0,93958.0,0.2128504]
[1746410678894,0.1471,93959.0,93958.0,0.2128504]
[1746410679094,0.1471,93959.0,93958.0,0.5222504]
[1746410679902,0.1511,93959.0,93958.0,0.5232504]
[1746410680102,0.1561,93959.0,93958.0,0.5242504]
[1746410680797,0.009,93959.0,93958.0,0.5242504]
[1746410681499,0.109,93959.0,93958.0,0.5242504]
[1746410681700,0.161,93959.0,93958.0,0.5242504]
[1746410682200,0.261,93959.0,93958.0,0.5242504]
[1746410682504,0.4228,93959.0,93958.0,0.5242504]
[1746410682999,0.7920761,93959.0,93958.0,0.002]
[1746410683198,1.14850606,93959.0,93958.0,0.002]
[1746410683393,0.4728,93959.0,93958.0,0.2148504]
[1746410683593,0.4228,93959.0,93958.0,0.2148504]
[1746410684804,0.009,93959.0,93958.0,0.2148504]
[1746410685195,0.009,93959.0,93958.0,0.5281504]
[1746410687097,0.109,93959.0,93958.0,0.5281504]
[1746410687297,0.2697,93959.0,93958.0,0.5281504]
[1746410687805,0.1697,93959.0,93958.0,0.5281504]
[1746410688906,0.009,93959.0,93958.0,0.5281504]
[1746410690807,0.1619,93959.0,93958.0,0.5281504]
[1746410691402,0.2619,93959.0,93958.0,0.3708504]
[1746410691601,0.4164,93959.0,93958.0,0.3708504]
[1746410692208,0.31517026,93959.0,93958.0,0.3708504]
[1746410693305,0.52801836,93959.0,93958.0,0.2148504]
[1746410693607,0.31517026,93959.0,93958.0,0.2148504]
[1746410697003,0.36517026,93959.0,93958.0,0.2148504]
[1746410697204,0.46517026,93959.0,93958.0,0.2148504]
[1746410700908,0.46517026,93959.0,93958.0,0.002]
[1746410701107,1.01250822,93959.0,93941.0,0.30718154]
[1746410701314,0.3608,93942.0,93941.0,0.57329244]
[1746410701510,0.4608,93942.0,93941.0,0.57329244]
[1746410701702,0.3157,93950.0,93949.0,0.2128708]
[1746410702105,0.4157,93950.0,93949.0,0.2128708]
[1746410702310,0.3157,93950.0,93949.0,0.3642708]
[1746410702508,0.4157,93950.0,93949.0,0.3642708]
[1746410704105,0.4187,93950.0,93949.0,0.3652708]
[1746410704307,0.4207,93950.0,93949.0,0.3652708]
[1746410704809,0.005,93950.0,93949.0,0.3652708]
[1746410705706,0.005,93950.0,93949.0,0.4717108]
[1746410706914,0.005,93950.0,93949.0,1.9717108]
[1746410711421,0.00936223,93960.0,93959.0,0.2128481]
[1746410712223,0.00936223,93960.0,93959.0,0.5090481]
[1746410712922,0.10936223,93960.0,93959.0,0.3605481]
[1746410713114,0.11436223,93960.0,93959.0,0.3615481]
[1746410713608,0.11436223,93960.0,93959.0,0.2138481]
[1746410713813,0.11836223,93960.0,93959.0,0.2148481]
[1746410718413,0.01836223,93960.0,93959.0,0.2148481]
[1746410718812,0.01836223,93960.0,93959.0,0.5172481]
[1746410725129,0.01836223,93960.0,93959.0,2.0172481]
[1746410731328,0.3131,93967.0,93965.0,0.2128345]
[1746410732137,0.1488,93966.0,93965.0,0.4868345]
[1746410732538,0.1488,93966.0,93965.0,0.4878345]
[1746410732731,0.1538,93966.0,93965.0,0.4878345]
[1746410733738,0.1568,93966.0,93965.0,0.4878345]
[1746410735442,0.16491937,93966.0,93965.0,0.4878345]
[1746410736144,0.1568,93966.0,93965.0,0.4878345]
[1746410738643,0.16492336,93966.0,93965.0,0.4878345]
[1746410739535,0.01612336,93966.0,93965.0,0.4878345]
[1746410742049,6e-08,93966.0,93965.0,0.4878345]
[1746410742247,0.1324,93973.0,93972.0,0.2128187]
[1746410742642,0.2687,93973.0,93972.0,0.2128187]
[1746410742837,0.27688487,93973.0,93972.0,0.2128187]
[1746410743645,0.28388487,93973.0,93972.0,0.2128187]
[1746410749254,0.38388487,93973.0,93972.0,0.2128187]
[1746410750658,0.43388487,93973.0,93972.0,0.2128187]
[1746410751057,0.2128218,93971.0,93969.0,0.2128247]
[1746410751252,0.43388487,93973.0,93972.0,0.2128187]
[1746410751560,0.30148487,93973.0,93972.0,0.2128187]
[1746410752852,0.29848487,93973.0,93972.0,0.2128187]
[1746410753153,0.29448487,93973.0,93972.0,0.2128187]
[1746410753561,0.29748487,93973.0,93972.0,0.2128187]
[1746410753860,0.30148487,93973.0,93972.0,0.2128187]
[1746410757854,0.30148487,93973.0,93946.0,0.16265445]
[1746410758161,0.1,93953.0,93952.0,0.290224]
[1746410759666,0.1,93953.0,93952.0,0.291224]
[1746410760161,0.1,93953.0,93952.0,0.292224]
[1746410760360,0.1,93953.0,93952.0,0.214864]
[1746410761061,0.135,93955.0,93954.0,0.2128594]
[1746410761958,0.135,93955.0,93954.0,0.3433594]
[1746410762257,0.135,93955.0,93954.0,0.3443594]
[1746410764959,0.2701,93955.0,93954.0,0.3443594]
[1746410766368,0.3701,93955.0,93954.0,0.3443594]
[1746410766565,0.3701,93955.0,93954.0,0.001]
[1746410766760,0.2128798,93945.0,93944.0,0.10843885]
[1746410766960,0.7236798,93945.0,93944.0,0.10843885]
[1746410768364,0.7236798,93945.0,93942.0,0.00159672]
[1746410768365,0.67046612,93945.0,93942.0,0.00159672]
[1746410768662,0.2128844,93943.0,93942.0,0.00159672]
[1746410768964,0.2098844,93943.0,93942.0,0.00159672]
[1746410769164,0.59263241,93943.0,93942.0,0.00159672]
[1746410769364,0.6990805,93943.0,93942.0,0.00159672]
[1746410769562,0.6990805,93943.0,93942.0,0.00459672]
[1746410769762,0.6990805,93943.0,93942.0,0.00759672]
[1746410770165,0.6990805,93943.0,93942.0,0.00459672]
[1746410770359,0.6990805,93943.0,93942.0,0.00759672]
[1746410770869,0.6990805,93943.0,93942.0,0.22048332]
[1746410771258,0.6990805,93943.0,93942.0,0.00759672]
[1746410778775,0.59263249,93943.0,93942.0,0.00759672]
[1746410779074,0.6990805,93943.0,93942.0,0.00759672]
[1746410780477,0.59263249,93943.0,93942.0,0.00759672]
[1746410780778,0.6990805,93943.0,93942.0,0.00759672]
[1746410781269,0.212932,93922.0,93906.0,0.0532417]
[1746410781471,0.8216,93917.0,93916.0,0.3435456]
[1746410781675,0.82971501,93917.0,93916.0,0.3435456]
[1746410782873,0.82971501,93917.0,93916.0,0.1306]
[1746410783075,0.82971501,93917.0,93910.0,0.1281]
[1746410783076,0.2129592,93910.0,93909.0,0.019]
[1746410783371,0.3629592,93910.0,93909.0,0.019]
[1746410783577,0.3549592,93910.0,93909.0,0.01]
[1746410783980,0.46143676,93910.0,93909.0,0.01]